[Event "FIDE Women World Rapid 2024"]
[Site "New York"]
[Date "2024.12.27"]
[Round "5.10"]
[White "Mkrtchyan, Mariam"]
[Black "Khotenashvili, Bella"]
[Result "1/2-1/2"]
[ECO "B06"]
[WhiteElo "2325"]
[BlackElo "2420"]
[Annotator "ChessBase"]
[PlyCount "165"]
[EventDate "2024.12.14"]
[EventType "swiss"]
[EventCountry "USA"]
[SourceTitle "playchess.com"]
[Source "ChessBase"]
[SourceQuality "1"]
[TimeControl "900+10"]

1. d4 {[%emt 0:00:03]} g6 {[%emt 0:00:06]} 2. e4 {[%emt 0:01:20]} Bg7 {[%emt 0:00:16]} 3. Nf3 {[%emt 0:00:04]} c6 {[%emt 0:00:04]} 4. h3 {[%emt 0:00:42]} d5 {[%emt 0:00:11]} 5. e5 {[%emt 0:00:51]} Nh6 {[%emt 0:00:22]} 6. Bd3 {[%emt 0:00:20]} O-O {[%emt 0:00:16]} 7. O-O {[%emt 0:00:05]} Na6 {[%emt 0:00:12]} 8. c3 {[%emt 0:00:18]} Nc7 {[%emt 0:00:20]} 9. Nbd2 {[%emt 0:00:35]} f6 {[%emt 0:00:23]} 10. Re1 {[%emt 0:01:03]} Nf7 {[%emt 0:00:09]} 11. exf6 {[%emt 0:00:50]} exf6 {[%emt 0:00:11]} 12. b3 {[%emt 0:00:47]} Ne6 {[%emt 0:00:29]} 13. Nf1 {[%emt 0:02:12]} Qc7 {[%emt 0:01:53]} 14. c4 {[%emt 0:02:19]} Nf4 {[%emt 0:02:09]} 15. Bxf4 {[%emt 0:00:02]} Qxf4 {[%emt 0:00:02]} 16. cxd5 {[%emt 0:00:03]} cxd5 {[%emt 0:00:02]} 17. Rc1 {[%emt 0:01:08]} Bd7 {[%emt 0:00:24]} 18. Ne3 {[%emt 0:01:10]} Qd6 {[%emt 0:01:12]} 19. Rc5 {[%emt 0:00:02]} Be6 {[%emt 0:00:29]} 20. Qc2 {[%emt 0:00:21]} f5 {[%emt 0:01:49]} 21. Rc7 {[%emt 0:00:53]} Rac8 {[%emt 0:01:31]} 22. Rxc8 {[%emt 0:00:52]} Rxc8 {[%emt 0:00:03]} 23. Qd2 {[%emt 0:00:01]} Qb6 {[%emt 0:00:48]} 24. Nc2 {[%emt 0:01:02]} Re8 {[%emt 0:02:27]} 25. Qb4 {[%emt 0:00:28]} Qxb4 {[%emt 0:00:05]} 26. Nxb4 {[%emt 0:00:01]} Nd6 {[%emt 0:00:01]} 27. Ng5 {[%emt 0:00:52]} Bf7 {[%emt 0:01:32]} 28. Rxe8+ {[%emt 0:00:20]} Bxe8 {[%emt 0:00:01]} 29. Nxd5 {[%emt 0:00:22]} Bxd4 {[%emt 0:00:01]} 30. Ne6 {[%emt 0:00:36]} Be5 {[%emt 0:00:08]} 31. Nc5 {[%emt 0:00:25]} b6 {[%emt 0:00:26]} 32. Na6 {[%emt 0:00:02]} Kf7 {[%emt 0:00:15]} 33. Kf1 {[%emt 0:00:06]} Bc6 {[%emt 0:00:12]} 34. Ne3 {[%emt 0:00:03]} f4 {[%emt 0:00:37]} 35. Nc4 {[%emt 0:00:03]} Nxc4 {[%emt 0:00:03]} 36. Bxc4+ {[%emt 0:00:00]} Kf6 {[%emt 0:00:02]} 37. Nb4 {[%emt 0:00:03]} Bb7 {[%emt 0:00:18]} 38. Bd5 {[%emt 0:00:34]} Bc8 {[%emt 0:00:55]} 39. Nc6 {[%emt 0:00:04]} Ba6+ {[%emt 0:00:06]} 40. Bc4 {[%emt 0:00:14]} Bxc4+ {[%emt 0:00:53]} 41. bxc4 {[%emt 0:00:01]} a5 {[%emt 0:00:06]} 42. c5 {[%emt 0:00:28]} bxc5 {[%emt 0:00:07]} 43. Nxa5 {[%emt 0:00:02]} Ke6 {[%emt 0:00:06]} 44. Ke2 {[%emt 0:00:01]} Kd5 {[%emt 0:00:31]} 45. Kd3 {[%emt 0:00:00]} f3 {[%emt 0:00:13]} 46. gxf3 {[%emt 0:00:05]} Bd4 {[%emt 0:00:01]} 47. Nc4 {[%emt 0:00:21]} Bxf2 {[%emt 0:00:03]} 48. a4 {[%emt 0:00:05]} Bg3 {[%emt 0:00:05]} 49. Ne3+ {[%emt 0:00:24]} Ke5 {[%emt 0:00:29]} 50. a5 {[%emt 0:00:13]} Kd6 {[%emt 0:00:04]} 51. Kc4 {[%emt 0:00:30]} Kc6 {[%emt 0:00:02]} 52. Nc2 {[%emt 0:00:08]} Bc7 {[%emt 0:00:06]} 53. a6 {[%emt 0:00:02]} Bd6 {[%emt 0:00:31]} 54. Na1 {[%emt 0:00:18]} Kb6 {[%emt 0:00:08]} 55. Nb3 {[%emt 0:00:01]} Be7 {[%emt 0:00:09]} 56. Kd5 {[%emt 0:00:16]} Bf8 {[%emt 0:00:09]} 57. a7 {[%emt 0:00:06]} Kxa7 {[%emt 0:00:02]} 58. Nxc5 {[%emt 0:00:01]} Bg7 {[%emt 0:00:08]} 59. Ke6 {[%emt 0:00:19]} Kb6 {[%emt 0:00:03]} 60. Kf7 {[%emt 0:00:11]} Ba1 {[%emt 0:00:27]} 61. Nd7+ {[%emt 0:00:08]} Kc6 {[%emt 0:00:08]} 62. Nf8 {[%emt 0:00:03]} Kd5 {[%emt 0:00:08]} 63. Nxh7 {[%emt 0:00:05]} Ke5 {[%emt 0:00:01]} 64. Kxg6 {[%emt 0:00:04]} Kf4 {[%emt 0:00:01]} 65. Ng5 {[%emt 0:00:02]} Kg3 {[%emt 0:00:08]} 66. Kh5 {[%emt 0:00:42]} Bb2 {[%emt 0:00:13]} 67. h4 {[%emt 0:00:14]} Bc1 {[%emt 0:00:06]} 68. Ne6 {[%emt 0:00:11]} Kxf3 {[%emt 0:00:03]} 69. Kg6 {[%emt 0:00:02]} Kg4 {[%emt 0:00:11]} 70. h5 {[%emt 0:00:01]} Be3 {[%emt 0:00:02]} 71. Ng7 {[%emt 0:00:10]} Bd2 {[%emt 0:00:08]} 72. Nf5 {[%emt 0:00:23]} Bc1 {[%emt 0:00:06]} 73. Nh6+ {[%emt 0:00:13]} Kh4 {[%emt 0:00:09]} 74. Nf7 {[%emt 0:00:08]} Bf4 {[%emt 0:00:07]} 75. Nd8 {[%emt 0:00:11]} Kg4 {[%emt 0:00:03]} 76. Ne6 {[%emt 0:00:07]} Bc1 {[%emt 0:00:02]} 77. Nc5 {[%emt 0:00:04]} Be3 {[%emt 0:00:09]} 78. Nd3 {[%emt 0:00:03]} Kh4 {[%emt 0:00:09]} 79. Ne5 {[%emt 0:00:14]} Bf4 {[%emt 0:00:03]} 80. Nd3 {[%emt 0:00:21]} Be3 {[%emt 0:00:04]} 81. Ne5 {[%emt 0:00:02]} Bf4 {[%emt 0:00:02]} 82. Nd3 {[%emt 0:00:10]} Be3 {[%emt 0:00:01]} 83. Ne5 {[%emt 0:00:02]} 1/2-1/2

[Event "FIDE Women World Rapid 2024"]
[Site "New York"]
[Date "2024.12.27"]
[Round "5.11"]
[White "Vaishali, Rameshbabu"]
[Black "Mammadova, Gulnar"]
[Result "1/2-1/2"]
[ECO "C77"]
[WhiteElo "2476"]
[BlackElo "2333"]
[Annotator "ChessBase"]
[PlyCount "75"]
[EventDate "2024.12.14"]
[EventType "swiss"]
[EventCountry "USA"]
[SourceTitle "playchess.com"]
[Source "ChessBase"]
[SourceQuality "1"]
[TimeControl "900+10"]

1. e4 {[%emt 0:00:05]} e5 {[%emt 0:00:01]} 2. Nf3 {[%emt 0:00:03]} Nc6 {[%emt 0:00:01]} 3. Bb5 {[%emt 0:00:02]} a6 {[%emt 0:00:04]} 4. Ba4 {[%emt 0:00:03]} Nf6 {[%emt 0:00:03]} 5. d3 {[%emt 0:00:02]} b5 {[%emt 0:00:28]} 6. Bb3 {[%emt 0:00:02]} Bc5 {[%emt 0:00:03]} 7. Nc3 {[%emt 0:00:08]} h6 {[%emt 0:00:19]} 8. a4 {[%emt 0:00:29]} Rb8 {[%emt 0:00:12]} 9. axb5 {[%emt 0:00:06]} axb5 {[%emt 0:00:01]} 10. Nd5 {[%emt 0:00:21]} d6 {[%emt 0:00:28]} 11. c3 {[%emt 0:00:18]} Nxd5 {[%emt 0:01:43]} 12. exd5 {[%emt 0:01:06]} Ne7 {[%emt 0:00:01]} 13. d4 {[%emt 0:00:01]} exd4 {[%emt 0:00:34]} 14. Nxd4 {[%emt 0:00:03]} O-O {[%emt 0:00:43]} 15. O-O {[%emt 0:00:06]} Qd7 {[%emt 0:01:28]} 16. Qd3 {[%emt 0:02:27]} Bxd4 {[%emt 0:02:08]} 17. Qxd4 {[%emt 0:00:04]} c5 {[%emt 0:00:21]} 18. dxc6 {[%emt 0:00:17]} Qxc6 {[%emt 0:00:49]} 19. Bf4 {[%emt 0:00:59]} Bb7 {[%emt 0:00:21]} 20. f3 {[%emt 0:00:03]} Rbd8 {[%emt 0:00:12]} 21. Bc2 {[%emt 0:03:09]} d5 {[%emt 0:01:02]} 22. Be5 {[%emt 0:01:01]} f6 {[%emt 0:00:28]} 23. Bf4 {[%emt 0:00:03]} Bc8 {[%emt 0:00:15]} 24. Ra7 {[%emt 0:02:41]} Nf5 {[%emt 0:00:20]} 25. Qf2 {[%emt 0:00:11]} Qc4 {[%emt 0:01:26]} 26. Bxf5 {[%emt 0:04:55]} Qxf4 {[%emt 0:00:37]} 27. Bxc8 {[%emt 0:00:22]} Rxc8 {[%emt 0:00:02]} 28. Rd1 {[%emt 0:00:02]} b4 {[%emt 0:01:18]} 29. cxb4 {[%emt 0:00:20]} Qxb4 {[%emt 0:00:11]} 30. Rd7 {[%emt 0:00:11]} Rfd8 {[%emt 0:00:52]} 31. Rxd8+ {[%emt 0:00:08]} Rxd8 {[%emt 0:00:02]} 32. Rd4 {[%emt 0:00:13]} Qc5 {[%emt 0:00:34]} 33. h4 {[%emt 0:00:12]} Rb8 {[%emt 0:00:11]} 34. Qd2 {[%emt 0:00:15]} Rb3 {[%emt 0:01:08]} 35. Kh1 {[%emt 0:00:09]} Qb5 {[%emt 0:00:13]} 36. Rxd5 {[%emt 0:00:18]} Rxb2 {[%emt 0:00:01]} 37. Rd8+ {[%emt 0:00:11]} Kh7 {[%emt 0:00:01]} 38. Qd3+ {[%emt 0:00:02]} 1/2-1/2

[Event "FIDE Women World Rapid 2024"]
[Site "New York"]
[Date "2024.12.27"]
[Round "5.11"]
[White "Lu, Miaoyi"]
[Black "Beydullayeva, Govhar"]
[Result "0-1"]
[ECO "B90"]
[WhiteElo "2441"]
[BlackElo "2404"]
[Annotator "ChessBase"]
[PlyCount "50"]
[EventDate "2024.12.14"]
[EventType "swiss"]
[EventCountry "USA"]
[SourceTitle "playchess.com"]
[Source "ChessBase"]
[SourceQuality "1"]
[TimeControl "900+10"]

1. e4 {[%emt 0:00:01]} c5 {[%emt 0:00:02]} 2. Nf3 {[%emt 0:00:02]} d6 {[%emt 0:00:00]} 3. d4 {[%emt 0:00:01]} cxd4 {[%emt 0:00:01]} 4. Nxd4 {[%emt 0:00:02]} Nf6 {[%emt 0:00:01]} 5. Nc3 {[%emt 0:00:01]} a6 {[%emt 0:00:01]} 6. Be3 {[%emt 0:00:02]} e5 {[%emt 0:00:03]} 7. Nb3 {[%emt 0:00:02]} Be6 {[%emt 0:00:05]} 8. f3 {[%emt 0:00:02]} h5 {[%emt 0:00:13]} 9. Nd5 {[%emt 0:00:02]} Bxd5 {[%emt 0:00:32]} 10. exd5 {[%emt 0:00:02]} Nbd7 {[%emt 0:00:09]} 11. Qd2 {[%emt 0:00:02]} g6 {[%emt 0:00:06]} 12. O-O-O {[%emt 0:00:07]} Bg7 {[%emt 0:00:34]} 13. Kb1 {[%emt 0:00:08]} Qc7 {[%emt 0:00:06]} 14. Rg1 {[%emt 0:00:12]} O-O {[%emt 0:00:16]} 15. Qf2 {[%emt 0:00:05]} b5 {[%emt 0:00:41]} 16. g4 {[%emt 0:00:37]} Rfb8 {[%emt 0:01:13]} 17. g5 {[%emt 0:00:51]} Ne8 {[%emt 0:00:02]} 18. Nd2 {[%emt 0:04:43]} Nb6 {[%emt 0:03:50]} 19. Ne4 {[%emt 0:03:43]} Nc4 {[%emt 0:00:08]} 20. Bxc4 {[%emt 0:00:49]} bxc4 {[%emt 0:00:08]} 21. c3 {[%emt 0:00:19]} Rb5 {[%emt 0:00:12]} 22. Rd2 {[%emt 0:00:42]} Qa5 {[%emt 0:02:22]} 23. Rgd1 {[%emt 0:00:08]} Qa4 {[%emt 0:01:03]} 24. f4 {[%emt 0:01:39]} Rab8 {[%emt 0:01:12]} 25. Ka1 {[%emt 0:00:46]} Rxb2 {[%emt 0:00:20]} 0-1

[Event "FIDE Women World Rapid 2024"]
[Site "New York"]
[Date "2024.12.27"]
[Round "5.12"]
[White "Lei, Tingjie"]
[Black "Abrahamyan, Tatev"]
[Result "1-0"]
[ECO "C11"]
[WhiteElo "2549"]
[BlackElo "2304"]
[Annotator "ChessBase"]
[PlyCount "71"]
[EventDate "2024.12.14"]
[EventType "swiss"]
[EventCountry "USA"]
[SourceTitle "playchess.com"]
[Source "ChessBase"]
[SourceQuality "1"]
[TimeControl "900+10"]

1. e4 {[%emt 0:00:03]} e6 {[%emt 0:00:02]} 2. d4 {[%emt 0:00:03]} d5 {[%emt 0:00:01]} 3. Nc3 {[%emt 0:00:07]} Nf6 {[%emt 0:00:28]} 4. e5 {[%emt 0:00:55]} Nfd7 {[%emt 0:00:02]} 5. f4 {[%emt 0:00:41]} c5 {[%emt 0:00:02]} 6. Nf3 {[%emt 0:00:02]} Nc6 {[%emt 0:00:04]} 7. Ne2 {[%emt 0:00:07]} Be7 {[%emt 0:01:39]} 8. c3 {[%emt 0:00:43]} Qa5 {[%emt 0:00:49]} 9. Be3 {[%emt 0:00:53]} cxd4 {[%emt 0:03:03]} 10. Nexd4 {[%emt 0:00:02]} a6 {[%emt 0:00:42]} 11. Be2 {[%emt 0:00:17]} Qc7 {[%emt 0:00:08]} 12. O-O {[%emt 0:00:08]} Nc5 {[%emt 0:00:37]} 13. Rc1 {[%emt 0:00:13]} O-O {[%emt 0:01:09]} 14. Kh1 {[%emt 0:00:22]} b5 {[%emt 0:00:18]} 15. g4 {[%emt 0:02:24]} f6 {[%emt 0:01:16]} 16. exf6 {[%emt 0:00:14]} Rxf6 {[%emt 0:00:05]} 17. Nxc6 {[%emt 0:01:12]} Qxc6 {[%emt 0:00:08]} 18. Ne5 {[%emt 0:00:12]} Qc7 {[%emt 0:00:21]} 19. Bd4 {[%emt 0:00:04]} Bd6 {[%emt 0:01:01]} 20. g5 {[%emt 0:00:24]} Rxf4 {[%emt 0:01:55]} 21. Rxf4 {[%emt 0:00:12]} Bxe5 {[%emt 0:00:01]} 22. Bxe5 {[%emt 0:02:09]} Qxe5 {[%emt 0:00:02]} 23. Qd4 {[%emt 0:00:33]} Qd6 {[%emt 0:00:41]} 24. Rcf1 {[%emt 0:01:07]} Bb7 {[%emt 0:01:43]} 25. b4 {[%emt 0:00:46]} Nd7 {[%emt 0:00:29]} 26. Rf7 {[%emt 0:00:07]} e5 {[%emt 0:00:05]} 27. Qg4 {[%emt 0:00:02]} Bc6 {[%emt 0:00:46]} 28. Kg1 {[%emt 0:01:47]} d4 {[%emt 0:01:02]} 29. Bf3 {[%emt 0:00:51]} e4 {[%emt 0:00:26]} 30. Bxe4 {[%emt 0:00:14]} Ne5 {[%emt 0:00:03]} 31. Qf4 {[%emt 0:00:12]} Bxe4 {[%emt 0:00:53]} 32. Qxe4 {[%emt 0:00:02]} Rd8 {[%emt 0:00:06]} 33. R7f5 {[%emt 0:00:22]} Nc6 {[%emt 0:00:04]} 34. Rc5 {[%emt 0:00:12]} Ne7 {[%emt 0:00:19]} 35. Re5 {[%emt 0:00:06]} Ng6 {[%emt 0:00:05]} 36. Re8+ {[%emt 0:00:06]} 1-0

[Event "FIDE Women World Rapid 2024"]
[Site "New York"]
[Date "2024.12.27"]
[Round "5.12"]
[White "Jarocka, Liwia"]
[Black "Pourkashiyan, Atousa"]
[Result "1-0"]
[ECO "D37"]
[WhiteElo "2261"]
[BlackElo "2255"]
[Annotator "ChessBase"]
[PlyCount "109"]
[EventDate "2024.12.14"]
[EventType "swiss"]
[EventCountry "USA"]
[SourceTitle "playchess.com"]
[Source "ChessBase"]
[SourceQuality "1"]
[TimeControl "900+10"]

1. d4 {[%emt 0:00:01]} d5 {[%emt 0:00:05]} 2. c4 {[%emt 0:00:02]} e6 {[%emt 0:00:02]} 3. Nc3 {[%emt 0:00:01]} a6 {[%emt 0:00:03]} 4. cxd5 {[%emt 0:00:58]} exd5 {[%emt 0:00:01]} 5. Nf3 {[%emt 0:00:38]} Nf6 {[%emt 0:00:15]} 6. Bg5 {[%emt 0:00:01]} Be7 {[%emt 0:00:30]} 7. e3 {[%emt 0:00:01]} O-O {[%emt 0:00:57]} 8. Bd3 {[%emt 0:00:02]} c6 {[%emt 0:00:36]} 9. h3 {[%emt 0:00:07]} Nbd7 {[%emt 0:01:58]} 10. O-O {[%emt 0:00:03]} Re8 {[%emt 0:00:07]} 11. Bf4 {[%emt 0:00:03]} Nf8 {[%emt 0:00:18]} 12. Ne5 {[%emt 0:02:42]} N6d7 {[%emt 0:00:22]} 13. Rb1 {[%emt 0:01:21]} Nxe5 {[%emt 0:00:09]} 14. Bxe5 {[%emt 0:00:01]} c5 {[%emt 0:01:27]} 15. Qf3 {[%emt 0:01:24]} f6 {[%emt 0:00:59]} 16. Bg3 {[%emt 0:00:23]} cxd4 {[%emt 0:00:14]} 17. Qxd5+ {[%emt 0:00:13]} Be6 {[%emt 0:00:58]} 18. Qxd4 {[%emt 0:00:06]} Qxd4 {[%emt 0:01:52]} 19. exd4 {[%emt 0:00:01]} Rad8 {[%emt 0:00:02]} 20. Rfd1 {[%emt 0:00:19]} Bd6 {[%emt 0:00:14]} 21. Bxd6 {[%emt 0:01:41]} Rxd6 {[%emt 0:00:01]} 22. d5 {[%emt 0:00:06]} Bf7 {[%emt 0:00:11]} 23. Re1 {[%emt 0:00:37]} Rxe1+ {[%emt 0:01:31]} 24. Rxe1 {[%emt 0:00:01]} Nd7 {[%emt 0:00:01]} 25. Bf5 {[%emt 0:00:59]} Ne5 {[%emt 0:00:47]} 26. f4 {[%emt 0:00:06]} Nc4 {[%emt 0:00:03]} 27. Re7 {[%emt 0:00:24]} b5 {[%emt 0:01:26]} 28. b3 {[%emt 0:01:46]} Nb6 {[%emt 0:02:19]} 29. Be6 {[%emt 0:00:07]} Bxe6 {[%emt 0:00:03]} 30. dxe6 {[%emt 0:00:01]} g6 {[%emt 0:01:23]} 31. Ne4 {[%emt 0:00:17]} Rd1+ {[%emt 0:00:10]} 32. Kh2 {[%emt 0:00:01]} Nd5 {[%emt 0:00:49]} 33. Rd7 {[%emt 0:00:01]} Kf8 {[%emt 0:00:07]} 34. Nxf6 {[%emt 0:00:15]} Nxf6 {[%emt 0:00:08]} 35. Rxd1 {[%emt 0:00:01]} Ke7 {[%emt 0:00:01]} 36. Re1 {[%emt 0:00:05]} Nd5 {[%emt 0:00:01]} 37. g3 {[%emt 0:00:14]} Nb4 {[%emt 0:00:06]} 38. Re2 {[%emt 0:00:06]} Nd5 {[%emt 0:00:06]} 39. Kg1 {[%emt 0:00:10]} Nc7 {[%emt 0:00:08]} 40. Rc2 {[%emt 0:00:17]} Nxe6 {[%emt 0:00:04]} 41. Rc6 {[%emt 0:00:05]} a5 {[%emt 0:00:15]} 42. Ra6 {[%emt 0:00:02]} Nd4 {[%emt 0:00:27]} 43. Rxa5 {[%emt 0:00:05]} h5 {[%emt 0:00:10]} 44. Kf2 {[%emt 0:00:03]} Ke6 {[%emt 0:00:11]} 45. g4 {[%emt 0:00:21]} hxg4 {[%emt 0:00:03]} 46. hxg4 {[%emt 0:00:01]} Kd5 {[%emt 0:00:11]} 47. a4 {[%emt 0:00:19]} Kc5 {[%emt 0:00:41]} 48. axb5 {[%emt 0:00:02]} Ne6 {[%emt 0:00:17]} 49. Kg3 {[%emt 0:00:14]} Nc7 {[%emt 0:00:20]} 50. Ra6 {[%emt 0:00:04]} Nxb5 {[%emt 0:00:08]} 51. Rxg6 {[%emt 0:00:03]} Nd4 {[%emt 0:00:01]} 52. Rg8 {[%emt 0:00:11]} Nxb3 {[%emt 0:00:03]} 53. g5 {[%emt 0:00:03]} Kd6 {[%emt 0:00:01]} 54. Re8 {[%emt 0:00:02]} Kd7 {[%emt 0:00:02]} 55. Re5 {[%emt 0:00:08]} 1-0

[Event "FIDE Women World Rapid 2024"]
[Site "New York"]
[Date "2024.12.27"]
[Round "5.13"]
[White "Zhu, Jiner"]
[Black "Wagner, Dinara"]
[Result "1/2-1/2"]
[ECO "C78"]
[WhiteElo "2514"]
[BlackElo "2437"]
[Annotator "ChessBase"]
[PlyCount "138"]
[EventDate "2024.12.14"]
[EventType "swiss"]
[EventCountry "USA"]
[SourceTitle "playchess.com"]
[Source "ChessBase"]
[SourceQuality "1"]
[TimeControl "900+10"]

1. e4 {[%emt 0:00:03]} e5 {[%emt 0:03:11]} 2. Nf3 {[%emt 0:00:02]} Nc6 {[%emt 0:00:01]} 3. Bb5 {[%emt 0:00:03]} a6 {[%emt 0:00:01]} 4. Ba4 {[%emt 0:00:01]} Nf6 {[%emt 0:00:02]} 5. d3 {[%emt 0:00:02]} Bc5 {[%emt 0:00:01]} 6. c3 {[%emt 0:00:03]} d6 {[%emt 0:00:01]} 7. O-O {[%emt 0:00:19]} O-O {[%emt 0:00:25]} 8. Bg5 {[%emt 0:00:28]} h6 {[%emt 0:00:01]} 9. Bh4 {[%emt 0:00:02]} g5 {[%emt 0:00:39]} 10. Bg3 {[%emt 0:00:04]} Ba7 {[%emt 0:00:58]} 11. Nbd2 {[%emt 0:00:04]} Ne7 {[%emt 0:00:23]} 12. d4 {[%emt 0:03:10]} Nh5 {[%emt 0:00:01]} 13. Re1 {[%emt 0:02:06]} Nxg3 {[%emt 0:00:10]} 14. hxg3 {[%emt 0:00:03]} Ng6 {[%emt 0:00:13]} 15. Nf1 {[%emt 0:00:17]} g4 {[%emt 0:02:44]} 16. N3h2 {[%emt 0:00:02]} h5 {[%emt 0:02:24]} 17. Qd2 {[%emt 0:01:13]} Qf6 {[%emt 0:01:02]} 18. Rad1 {[%emt 0:01:10]} Kg7 {[%emt 0:00:29]} 19. Ne3 {[%emt 0:00:14]} c6 {[%emt 0:00:03]} 20. Bc2 {[%emt 0:00:45]} Re8 {[%emt 0:00:42]} 21. Rf1 {[%emt 0:00:25]} exd4 {[%emt 0:01:21]} 22. cxd4 {[%emt 0:00:02]} c5 {[%emt 0:00:01]} 23. Nd5 {[%emt 0:00:48]} Qxd4 {[%emt 0:01:27]} 24. Nc7 {[%emt 0:00:07]} Be6 {[%emt 0:00:32]} 25. Qxd4+ {[%emt 0:01:54]} cxd4 {[%emt 0:00:01]} 26. Bb3 {[%emt 0:00:01]} Bxb3 {[%emt 0:00:42]} 27. axb3 {[%emt 0:00:02]} Rac8 {[%emt 0:00:01]} 28. Nxe8+ {[%emt 0:00:03]} Rxe8 {[%emt 0:00:00]} 29. Rfe1 {[%emt 0:00:51]} Re5 {[%emt 0:00:01]} 30. f4 {[%emt 0:00:20]} Rb5 {[%emt 0:01:14]} 31. Rd3 {[%emt 0:00:02]} Ne7 {[%emt 0:00:00]} 32. Nf1 {[%emt 0:01:59]} Nc6 {[%emt 0:00:01]} 33. Kh2 {[%emt 0:00:08]} a5 {[%emt 0:00:40]} 34. Rc1 {[%emt 0:00:20]} Bc5 {[%emt 0:00:19]} 35. Rc4 {[%emt 0:00:12]} Bb6 {[%emt 0:00:24]} 36. Kg1 {[%emt 0:01:09]} Nb4 {[%emt 0:00:20]} 37. Rd1 {[%emt 0:00:02]} Na6 {[%emt 0:00:00]} 38. Nd2 {[%emt 0:00:27]} Nc5 {[%emt 0:00:00]} 39. Kf2 {[%emt 0:00:41]} Nxb3 {[%emt 0:00:16]} 40. Ke1 {[%emt 0:00:59]} Nc5 {[%emt 0:00:19]} 41. Rxd4 {[%emt 0:00:03]} Rxb2 {[%emt 0:00:33]} 42. Rxd6 {[%emt 0:00:08]} Rb4 {[%emt 0:00:08]} 43. e5 {[%emt 0:00:48]} a4 {[%emt 0:00:05]} 44. Rb1 {[%emt 0:00:01]} Ba5 {[%emt 0:00:08]} 45. Kd1 {[%emt 0:00:29]} a3 {[%emt 0:00:10]} 46. Ra1 {[%emt 0:00:04]} Ra4 {[%emt 0:00:09]} 47. Ra2 {[%emt 0:00:12]} b5 {[%emt 0:00:22]} 48. Rd5 {[%emt 0:00:07]} Bxd2 {[%emt 0:00:09]} 49. Rxc5 {[%emt 0:00:13]} b4 {[%emt 0:00:09]} 50. Kxd2 {[%emt 0:00:21]} b3 {[%emt 0:00:00]} 51. Rcc2 {[%emt 0:00:06]} bxa2 {[%emt 0:00:03]} 52. Rxa2 {[%emt 0:00:01]} Kg6 {[%emt 0:00:02]} 53. Kc3 {[%emt 0:00:04]} Kf5 {[%emt 0:00:08]} 54. Kb3 {[%emt 0:00:01]} Ra7 {[%emt 0:00:03]} 55. Rxa3 {[%emt 0:00:06]} Rxa3+ {[%emt 0:00:09]} 56. Kxa3 {[%emt 0:00:00]} h4 {[%emt 0:00:01]} 57. gxh4 {[%emt 0:00:02]} Kxf4 {[%emt 0:00:00]} 58. g3+ {[%emt 0:00:58]} Kxe5 {[%emt 0:00:09]} 59. Kb3 f5 {[%emt 0:00:02]} 60. Kc2 {[%emt 0:00:23]} f4 {[%emt 0:00:44]} 61. gxf4+ {[%emt 0:00:01]} Kxf4 {[%emt 0:00:01]} 62. Kd2 {[%emt 0:00:04]} g3 {[%emt 0:00:33]} 63. Ke2 {[%emt 0:00:02]} Kg4 {[%emt 0:00:04]} 64. Kf1 {[%emt 0:00:02]} Kh3 {[%emt 0:00:22]} 65. Kg1 {[%emt 0:00:09]} Kxh4 {[%emt 0:00:01]} 66. Kg2 {[%emt 0:00:01]} Kg4 {[%emt 0:00:01]} 67. Kg1 {[%emt 0:00:01]} Kf3 {[%emt 0:00:01]} 68. Kf1 {[%emt 0:00:02]} g2+ {[%emt 0:00:00]} 69. Kg1 {[%emt 0:00:01]} Kg3 {[%emt 0:00:01]} 1/2-1/2

[Event "FIDE Women World Rapid 2024"]
[Site "New York"]
[Date "2024.12.27"]
[Round "5.13"]
[White "Kaldarova, Ayaulym"]
[Black "Padmini, Rout"]
[Result "0-1"]
[ECO "A34"]
[WhiteElo "2144"]
[BlackElo "2339"]
[Annotator "ChessBase"]
[PlyCount "123"]
[EventDate "2024.12.14"]
[EventType "swiss"]
[EventCountry "USA"]
[SourceTitle "playchess.com"]
[Source "ChessBase"]
[SourceQuality "1"]
[TimeControl "900+10"]

1. Nf3 {[%emt 0:00:03]} c5 {[%emt 0:00:06]} 2. c4 {[%emt 0:00:02]} Nc6 {[%emt 0:00:04]} 3. Nc3 {[%emt 0:00:03]} e5 {[%emt 0:00:04]} 4. e3 {[%emt 0:00:30]} Nf6 {[%emt 0:00:10]} 5. d4 {[%emt 0:00:08]} e4 {[%emt 0:00:09]} 6. d5 {[%emt 0:00:07]} exf3 {[%emt 0:00:18]} 7. dxc6 {[%emt 0:00:03]} dxc6 {[%emt 0:01:26]} 8. Qxd8+ {[%emt 0:01:04]} Kxd8 {[%emt 0:00:03]} 9. gxf3 {[%emt 0:00:02]} g6 {[%emt 0:00:14]} 10. e4 {[%emt 0:01:13]} Nh5 {[%emt 0:00:03]} 11. Be3 {[%emt 0:00:41]} Bd6 {[%emt 0:00:27]} 12. O-O-O {[%emt 0:00:29]} Kc7 {[%emt 0:00:04]} 13. h4 {[%emt 0:02:25]} b6 {[%emt 0:00:37]} 14. Bd3 {[%emt 0:00:57]} Nf4 {[%emt 0:03:08]} 15. Bc2 {[%emt 0:02:05]} Be5 {[%emt 0:00:51]} 16. Bxf4 {[%emt 0:00:25]} Bxf4+ {[%emt 0:00:02]} 17. Kb1 {[%emt 0:00:01]} Be6 {[%emt 0:00:35]} 18. b3 {[%emt 0:00:11]} Rhd8 {[%emt 0:00:48]} 19. Ne2 {[%emt 0:00:17]} Bd2 {[%emt 0:01:06]} 20. h5 {[%emt 0:00:29]} g5 {[%emt 0:00:21]} 21. h6 {[%emt 0:00:04]} f6 {[%emt 0:00:24]} 22. e5 {[%emt 0:00:35]} fxe5 {[%emt 0:00:49]} 23. Bxh7 {[%emt 0:00:08]} g4 {[%emt 0:00:26]} 24. Be4 {[%emt 0:00:50]} gxf3 {[%emt 0:00:26]} 25. Ng3 {[%emt 0:00:01]} Bg5 {[%emt 0:00:19]} 26. h7 {[%emt 0:00:15]} Rxd1+ {[%emt 0:00:24]} 27. Rxd1 {[%emt 0:00:01]} Bf6 {[%emt 0:00:11]} 28. Bxf3 {[%emt 0:00:31]} e4 {[%emt 0:01:05]} 29. Bxe4 {[%emt 0:00:20]} Rf8 {[%emt 0:00:55]} 30. Nh5 {[%emt 0:01:11]} Bh8 {[%emt 0:00:20]} 31. f3 {[%emt 0:00:03]} Bf5 {[%emt 0:02:30]} 32. Ng3 {[%emt 0:01:42]} Bxe4+ {[%emt 0:00:07]} 33. fxe4 {[%emt 0:00:02]} Rf2 {[%emt 0:00:13]} 34. Rf1 {[%emt 0:00:32]} Rh2 {[%emt 0:00:09]} 35. Rf7+ {[%emt 0:00:12]} Kd6 {[%emt 0:00:02]} 36. Nf5+ {[%emt 0:00:37]} Ke5 {[%emt 0:00:02]} 37. Re7+ {[%emt 0:00:04]} Kf4 {[%emt 0:00:21]} 38. Nd6 {[%emt 0:01:32]} Ke3 {[%emt 0:00:55]} 39. e5 {[%emt 0:00:03]} Kd4 {[%emt 0:00:23]} 40. Rd7 {[%emt 0:01:01]} Bxe5 {[%emt 0:00:27]} 41. Nb5+ {[%emt 0:00:49]} Ke4 {[%emt 0:00:07]} 42. Nxa7 {[%emt 0:00:09]} Bd4 {[%emt 0:00:16]} 43. Nxc6 {[%emt 0:00:10]} Kd3 {[%emt 0:00:02]} 44. Nxd4 {[%emt 0:00:03]} cxd4 {[%emt 0:00:01]} 45. h8=Q {[%emt 0:00:17]} Rxh8 {[%emt 0:00:03]} 46. Kb2 {[%emt 0:00:01]} Rh2+ {[%emt 0:00:16]} 47. Ka3 {[%emt 0:00:01]} Kc3 {[%emt 0:00:02]} 48. Rd6 {[%emt 0:00:23]} d3 {[%emt 0:00:23]} 49. Rxb6 {[%emt 0:00:02]} d2 {[%emt 0:00:01]} 50. Rd6 {[%emt 0:00:01]} Rh1 {[%emt 0:00:04]} 51. Rxd2 {[%emt 0:00:05]} Kxd2 {[%emt 0:00:02]} 52. Kb4 {[%emt 0:00:13]} Kd3 {[%emt 0:00:12]} 53. a4 {[%emt 0:00:02]} Rh8 {[%emt 0:00:50]} 54. Kc5 {[%emt 0:00:38]} Rc8+ {[%emt 0:00:02]} 55. Kb5 {[%emt 0:00:15]} Rb8+ {[%emt 0:00:02]} 56. Kc5 {[%emt 0:00:05]} Rxb3 {[%emt 0:00:09]} 57. a5 {[%emt 0:00:00]} Ra3 {[%emt 0:00:04]} 58. Kb5 {[%emt 0:00:18]} Kd4 {[%emt 0:00:05]} 59. a6 {[%emt 0:00:09]} Ke5 {[%emt 0:00:20]} 60. c5 {[%emt 0:00:17]} Ke6 {[%emt 0:00:05]} 61. Kb6 {[%emt 0:00:11]} Kd7 {[%emt 0:00:05]} 62. Kb7 {[%emt 0:00:12]} 0-1